Cogmind - Beta 13 @@@ ROGUE MODE // 2024.05.14 @ 15:27:48 Player: Lunace Result: Destroyed by G-50 Soldier with Heavy Laser Performance ------------- Evolutions (3) 1500 Regions Visited (10) 2000 Robots Destroyed (150) 750 Value Destroyed (6370) 6370 Prototype IDs (29) 580 Alien Tech Used (0) 0 Bonus (3086) 3086 TOTAL SCORE: 14286 Bonus ------- High Alert Combat Kills 2540 Follower Combat Kills 369 Entered Garrisons 200 Aligned with FarCom 300 Friendly Fire -323 Cogmind --------- Core Integrity 0/700 Matter 290/300 Energy 68/100 System Corruption 15% Temperature Cool (27) Movement Core (50) Location -7/Factory Parts ------- > --- POWER (1) -------- (None) > --- PROPULSION (4) --- (None) > --- UTILITY (6) ------ Advanced Heat Sink > --- WEAPON (2) ------- Plasma Cutter > --- INVENTORY (5) ---- Improved Deuterium Engine Chronowheel Plasma Cannon KE Penetrator Great Axe Peak State ------------ > --- POWER ------------ Hybrid Antimatter Reactor > --- PROPULSION ------- Improved Heavy Treads Improved Heavy Treads > --- UTILITY ---------- Advanced Heat Sink Advanced Heat Sink High-capacity Storage Unit Kinecellerator Improved Light Armor Plating Force Field > --- WEAPON ----------- Beamcaster KE Penetrator > --- INVENTORY -------- Improved Deuterium Engine Armored Treads Armored Treads Advanced Cooling System Matter Compressor Matter Compressor Chronowheel Great Axe Great Axe Fusion Bomb Trap Fusion Bomb Trap Fusion Bomb Trap Gamma Bomb Trap Gamma Bomb Trap Gamma Bomb Trap Deploy-a-Sentry [Rating: 75] Favorites ----------- Power Improved Ion Engine Engine Improved Ion Engine Power Core Nuclear Core Reactor Hybrid Antimatter Reactor Propulsion Light Treads Treads Light Treads Leg Carbon-fiber Leg Utility Advanced Heat Sink Device Advanced Heat Sink Storage High-capacity Storage Unit Processor Improved Signal Interpreter Protection Improved Light Armor Plating Weapon Beam Rifle Energy Gun Beam Rifle Energy Cannon Advanced Beam Cannon Ballistic Gun KE Penetrator Launcher Rocket Launcher Special Weapon Plasma Cutter Impact Weapon Power Maul Slashing Weapon Great Axe Build | -11 -10 -10 -9 -9 -9 -8 -8 -7 -7 -7 ------- Run | Yrd Mat Min Mat Min Exi Min Mat Fac Gar Fac Slots Evolved 6 | . . . 2 . . . 2 2 . . Power . | . . . . . . . . . . . Propulsion 2 | . . . 1 . . . 1 . . . Utility 4 | . . . 1 . . . 1 2 . . Weapon . | . . . . . . . . . . . Parts Attached 115 | 7 4 . 9 4 3 . 10 14 25 39 Power 11 | 1 . . 1 . . . 1 1 4 3 Engine 7 | 1 . . 1 . . . . 1 3 1 Core 1 | . . . . . . . 1 . . . Reactor 3 | . . . . . . . . . 1 2 Propulsion 22 | 2 . . 3 . . . 4 5 2 6 Treads 21 | 2 . . 3 . . . 3 5 2 6 Leg 1 | . . . . . . . 1 . . . Wheel . | . . . . . . . . . . . Hover . | . . . . . . . . . . . Flight . | . . . . . . . . . . . Utility 38 | 1 2 . 3 1 1 . 2 5 9 14 Device 18 | . 1 . 1 . . . 1 1 7 7 Storage 3 | 1 1 . . . 1 . . . . . Processor 3 | . . . . . . . 1 2 . . Hackware . | . . . . . . . . . . . Protection 14 | . . . 2 1 . . . 2 2 7 Artifact . | . . . . . . . . . . . Weapon 44 | 3 2 . 2 3 2 . 3 3 10 16 Energy Gun 14 | 1 2 . 1 2 2 . . . 5 1 Energy Cannon 6 | . . . . . . . 2 2 . 2 Ballistic Gun 5 | 2 . . . . . . . . . 3 Ballistic Cannon . | . . . . . . . . . . . Launcher 10 | . . . 1 1 . . 1 1 1 5 Special Weapon 1 | . . . . . . . . . . 1 Impact Weapon 4 | . . . . . . . . . 3 1 Slashing Weapon 4 | . . . . . . . . . 1 3 Piercing Weapon . | . . . . . . . . . . . Special Melee Weapon . | . . . . . . . . . . . Unidentified Prototypes 2 | . . . . . . . . . 1 1 Parts Lost 32 | . . . 1 3 . . . 2 6 20 Power 2 | . . . . . . . . . . 2 Propulsion 8 | . . . . . . . . 2 . 6 Utility 15 | . . . 1 1 . . . . 3 10 Weapon 7 | . . . . 2 . . . . 3 2 Highest Loss Streak 16 | . . . 1 3 . . . 1 1 16 To Critical Strikes 3 | . . . . . . . . . . 3 Average Slot Usage (%) 91 | . 91 100 92 100 100 100 94 97 80 91 Engine 6 | . 14 14 11 11 11 11 8 4 4 . Reactor 2 | . . . . . . . . . 1 6 Treads 25 | . 28 28 26 33 33 33 30 27 17 23 Device 14 | . 6 14 11 11 11 11 9 15 15 19 Storage 8 | . 14 14 11 11 11 11 9 7 7 7 Processor 1 | . . . . . . . 4 11 1 . Protection 12 | . . . 10 11 11 11 9 10 14 17 Energy Gun 9 | . 7 28 17 16 22 22 12 . 2 1 Energy Cannon 2 | . . . . . . . 5 12 1 1 Ballistic Gun 1 | . 19 . . . . . . . . 2 Launcher 2 | . . . 4 5 . . . 1 3 1 Impact Weapon 1 | . . . . . . . . . 4 . Slashing Weapon 2 | . . . . . . . . . 1 6 Naked Turns . | . . . . . . . . . . . Heaviest Build 91 | 12 22 22 31 31 61 61 64 68 80 91 Greatest Support 150 | 40 40 40 63 63 63 63 83 83 150 150 Greatest Overweight (x) 3 | . . . . . . . 1 1 . 3 Average Overweight (x) . | . . . . . . . . . . . Largest Inventory Capacity 20 | 8 10 10 10 10 20 20 20 20 20 20 Average Capacity 16 | 6 9 10 10 10 12 20 20 20 20 19 Most Carried 20 | 4 10 10 10 10 10 10 17 18 20 20 Average Carried 12 | 2 5 9 9 8 8 10 13 14 13 15 Final Capacity 20 | 8 10 10 10 10 20 20 20 20 20 5 Final Carried 19 | 4 10 9 8 7 10 10 16 15 19 5 Class Distribution -------------------- 60% | Mutant 37% | Scavenger-Mutant Dominant Class ---------------- Mutant | -10/Materials Mutant | -10/Mines Mutant | -9/Materials Mutant | -9/Mines Mutant | -9/Exiles Mutant | -8/Mines Mutant | -8/Materials Skirmisher | -7/Factory Scavenger-Mutant | -7/Garrison Scavenger-Mutant | -7/Factory Resources | -11 -10 -10 -9 -9 -9 -8 -8 -7 -7 -7 ----------- Run | Yrd Mat Min Mat Min Exi Min Mat Fac Gar Fac Matter Collected 3008 | 249 52 20 165 124 30 . 71 184 664 1449 Remotely 321 | . . . . . . . . . . 321 Salvage Created 5258 | . 69 79 579 200 . . 373 281 1756 1921 Parts 238 | . 6 9 41 14 . . 22 14 62 70 Haulers Intercepted 3 | . . . . . . . 2 . . 1 Recyclers Shooed 6 | . . . 1 1 . . . . . 4 Parts Field Recycled . | . . . . . . . . . . . Retrieved Matter . | . . . . . . . . . . . Parts Self-Destructed . | . . . . . . . . . . . Prevented . | . . . . . . . . . . . Kills | -11 -10 -10 -9 -9 -9 -8 -8 -7 -7 -7 ------- Run | Yrd Mat Min Mat Min Exi Min Mat Fac Gar Fac Combat Hostiles Destroyed 127 | . 1 6 17 12 . . 7 6 32 46 Melee 7 | . . . . . . . . . . 7 Guns 31 | . 1 6 8 4 . . . . 4 8 Cannons 15 | . . . . . . . 3 4 3 5 AOE 70 | . . . 9 8 . . 3 2 23 25 Classes Destroyed 15 | . 3 1 2 4 . . 1 . 1 3 Worker 5 | . 1 . 1 . . . 1 . . 2 Builder 3 | . . . 1 . . . . . . 2 Tunneler 1 | . . . . 1 . . . . . . Hauler 3 | . . . . . . . 2 . . 1 Recycler 5 | . . . . 1 . . . . . 4 Turret 1 | . . . . . . . . . . 1 Watcher 8 | . 1 . 3 . . . 3 . . 1 Swarmer 36 | . . 6 7 8 . . 3 2 7 3 Grunt 57 | . 1 . 6 1 . . 3 1 19 26 Brawler 7 | . . . . . . . . . 1 6 Duelist 4 | . . . . 1 . . . . . 3 Protector 2 | . . . . . . . . . . 2 Sentry 15 | . . . 4 . . . 1 3 5 2 Programmer 4 | . . . . . . . . . . 4 Assembled 2 | . . . . 2 . . . . . . Best Kill Streak 20 | . 3 3 7 5 . . 4 2 9 20 Combat Bots Only 14 | . 1 3 7 4 . . 3 2 9 14 Max Kills in Single Turn 4 | . 1 2 3 2 . . 3 2 3 4 Gunslinging . | . . . . . . . . . . . Exploded 4 | . . . 3 2 . . 3 2 3 4 Melee 1 | . . . . . . . . . . 1 Uniques/NPCs Destroyed . | . . . . . . . . . . . Combat | -11 -10 -10 -9 -9 -9 -8 -8 -7 -7 -7 -------- Run | Yrd Mat Min Mat Min Exi Min Mat Fac Gar Fac Hostile Shots Fired 867 | . 2 24 61 41 . . 25 171 213 330 Missed 312 | . . 3 15 9 . . 8 92 96 89 Damage Taken 7793 | . 22 178 569 449 . . 272 580 1485 4238 Core 870 | . 11 44 64 41 . . . 50 104 556 Absorbed by Shields 815 | . . . . . . . . . . 815 Regen/Repaired (Parts) 431 | . . . 91 . . . 122 . . 218 Core Remaining (%) 87 | 100 . 78 . . . 73 100 . . . Volleys Fired 340 | . 7 9 46 25 . . 23 30 100 100 Largest 2 | . 2 2 2 2 . . 2 2 2 2 Hottest 136 | . 40 112 112 112 . . 136 136 136 119 Shots Fired 494 | . 14 18 74 40 . . 44 52 127 125 Gun 242 | . 14 18 66 30 . . 16 . 31 67 Cannon 163 | . . . . . . . 25 47 62 29 Launcher 89 | . . . 8 10 . . 3 5 34 29 Special . | . . . . . . . . . . . Kinetic 66 | . 14 . . . . . . . . 52 Thermal 339 | . . 18 66 30 . . 41 47 93 44 Explosive 89 | . . . 8 10 . . 3 5 34 29 Electromagnetic . | . . . . . . . . . . . Robot Hit Streak 36 | . 5 7 20 9 . . 7 16 36 9 Robot Miss Streak 6 | . 1 2 6 3 . . 2 3 2 4 Penetration Max 1 | . . . . . . . . . . 1 Secondary Targets 4 | . . 2 1 1 . . . . . . Max Gunslinging Chain 1 | . . 1 1 1 . . . . . . Shots Hit Robots 346 | . 10 12 48 25 . . 28 36 98 89 Core Hits 308 | . 6 6 36 19 . . 20 13 91 117 Critical Kills 2 | . . . . . . . . . 2 . Critical Parts Destroyed 5 | . . . . . . . . . 3 2 Critical Strikes 25 | . . . 6 3 . . 2 . 6 8 Burn 12 | . . . 6 3 . . 2 . 1 . Meltdown 2 | . . . . . . . . . 2 . Destroy 2 | . . . . . . . . . . 2 Smash 4 | . . . . . . . . . 3 1 Sever 5 | . . . . . . . . . . 5 Melee Attacks 69 | . . . . . . . . . 29 40 Impact 30 | . . . . . . . . . 24 6 Slashing 39 | . . . . . . . . . 5 34 Piercing . | . . . . . . . . . . . Sneak Attacks . | . . . . . . . . . . . Combat Hostiles . | . . . . . . . . . . . Follow-up Attacks 3 | . . . . . . . . . . 3 Damage Inflicted 15646 | . 73 189 1229 966 . . 741 960 4677 6811 Guns 2682 | . 67 189 686 290 . . 161 . 350 939 Cannons 2678 | . . . . . . . 369 718 1105 486 Explosions 8822 | . . . 543 666 . . 211 242 2644 4516 Melee 1431 | . . . . . . . . . 578 853 Ramming 33 | . 6 . . 10 . . . . . 17 Kinetic 921 | . 67 . . . . . . . . 854 Thermal 4707 | . . 189 686 290 . . 530 718 1455 839 Explosive 8554 | . . . 543 666 . . 211 242 2644 4248 Electromagnetic . | . . . . . . . . . . . Impact 716 | . . . . . . . . . 578 138 Slashing 715 | . . . . . . . . . . 715 Piercing . | . . . . . . . . . . . Highest Corruption 15 | . . . . . . . 1 . . 15 Average Corruption 1 | . . . . . . . 1 . . 1 Corruption Purged . | . . . . . . . . . . . Corruption Blocked . | . . . . . . . . . . . Effects 20 | . . . . . . . 6 . . 14 Message Errors 5 | . . . . . . . 1 . . 4 Matter Fused 6 | . . . . . . . 1 . . 5 Energy Discharges 3 | . . . . . . . . . . 3 Data Loss (minor) 2 | . . . . . . . . . . 2 Data Loss (major) 2 | . . . . . . . 2 . . . Misfires 1 | . . . . . . . 1 . . . Alerts 1 | . . . . . . . 1 . . . Overload Shots . | . . . . . . . . . . . Overflow Damage 545 | . . . 13 59 . . . 7 329 137 Projectiles . | . . . . . . . . . . . Explosions 189 | . . . 13 59 . . . 7 5 105 Melee 356 | . . . . . . . . . 324 32 Knockbacks 2 | . . . . . . . . . 2 . Impact 2 | . . . . . . . . . 2 . Kinetic . | . . . . . . . . . . . Secondary . | . . . . . . . . . . . Self-Inflicted Damage 1031 | . . . . 87 . . 40 21 140 743 Shots 27 | . . . . 3 . . 1 2 5 16 Rammed 8 | . 1 . . 4 . . . . . 3 Targets Rammed 9 | . 2 . . 4 . . . . . 3 Kicked . | . . . . . . . . . . . Crushed 1 | . 1 . . . . . . . . . Highest Temperature 388 | . 6 126 132 126 . . 99 42 . 388 Average Temperature 43 | . 6 53 35 41 . . 17 26 . 71 Received Heat Transfer 2402 | . 12 . 225 36 . . 90 96 552 1391 Effects 1 | . . . . . . . . . . 1 Shutdowns 1 | . . . . . . . . . . 1 Siege Activations . | . . . . . . . . . . . Robots Corrupted . | . . . . . . . . . . . Combat Hostiles . | . . . . . . . . . . . Parts Fried 5 | . . . . . . . . . 5 . Impact Corruptions 8 | . . . . . . . . . 8 . Robots Melted 4 | . . . . . . . 1 . 2 1 Combat Hostiles 3 | . . . . . . . 1 . 1 1 Parts Melted 30 | . . 1 10 1 . . 2 9 5 2 Heat Transferred 10086 | . . 481 2183 962 . . 1221 1295 2646 1298 Parts Sabotaged . | . . . . . . . . . . . Parts Stolen . | . . . . . . . . . . . Parts Stripped . | . . . . . . . . . . . Power Chain Reactions . | . . . . . . . . . . . Alert | -11 -10 -10 -9 -9 -9 -8 -8 -7 -7 -7 ------- Run | Yrd Mat Min Mat Min Exi Min Mat Fac Gar Fac Peak Influence 2077 | . 113 183 360 344 . . 227 446 2055 2077 Initial 1078 | . . 43 . 140 . . . 102 320 1078 Average 668 | . 63 117 287 240 . . 30 234 1126 1211 Maximum Alert Level 5 | . . . 1 1 . . 1 2 5 5 Low Security (%) 32 | 100 100 100 14 20 . 100 98 56 . . Level 1 20 | . . . 85 79 . . 1 31 19 . Level 2 4 | . . . . . . . . 12 16 . Level 3 7 | . . . . . . . . . 3 25 Level 4 26 | . . . . . . . . . 31 70 Level 5 7 | . . . . . . . . . 28 3 High Security . | . . . . . . . . . . . Max Security . | . . . . . . . . . . . Squads Dispatched 24 | . 1 . 1 . . . 2 3 . 17 Investigation 3 | . . . . . . . 1 . . 2 Extermination 4 | . . . . . . . . . . 4 Reinforcement 7 | . 1 . 1 . . . 1 . . 4 Assault 6 | . . . . . . . . . . 6 Garrison 4 | . . . . . . . . 3 . 1 Intercept . | . . . . . . . . . . . Searches Triggered . | . . . . . . . . . . . Construction Impeded 1 | . . . . . . . . . . 1 Haulers Reinforced 1 | . . . . . . . . . . 1 Active Scanning Responses . | . . . . . . . . . . . Cargo Convoy Interrupts . | . . . . . . . . . . . Stealth | -11 -10 -10 -9 -9 -9 -8 -8 -7 -7 -7 --------- Run | Yrd Mat Min Mat Min Exi Min Mat Fac Gar Fac Distress Signals 2 | . 1 . . . . . . . . 1 Communications Jammed . | . . . . . . . . . . . Distress Signals . | . . . . . . . . . . . Times Spotted 183 | . 5 6 20 13 . . 10 13 43 73 Peak Tracking Total 11 | . 5 3 7 4 . . 3 3 6 11 Tactical Retreats 14 | . 1 . . . . . . 7 3 3 Traps | -11 -10 -10 -9 -9 -9 -8 -8 -7 -7 -7 ------- Run | Yrd Mat Min Mat Min Exi Min Mat Fac Gar Fac Traps Triggered 4 | . . . . . . . 1 . 3 . Indirectly . | . . . . . . . . . . . Trap Hack Attempts . | . . . . . . . . . . . Triggered . | . . . . . . . . . . . Disarmed . | . . . . . . . . . . . Reprogrammed . | . . . . . . . . . . . Reused 3 | . . . . . . . . . . 3 Traps Extracted . | . . . . . . . . . . . Installed 4 | . . . . . . . . . . 4 Triggered 3 | . . . . . . . . . . 3 Most Traps Carried 6 | . . . . . . . . . 6 6 Machines | -11 -10 -10 -9 -9 -9 -8 -8 -7 -7 -7 ---------- Run | Yrd Mat Min Mat Min Exi Min Mat Fac Gar Fac Machines Disabled 41 | . . . . . . . . . 13 28 Max in Single Turn 15 | . . . . . . . . . 2 15 Garrison Relay 5 | . . . . . . . . . 5 . Phase Generator 1 | . . . . . . . . . 1 . Machines Repaired . | . . . . . . . . . . . Machines Dismantled . | . . . . . . . . . . . Machines Sabotaged . | . . . . . . . . . . . Overloaded Fab Kills . | . . . . . . . . . . . Hacking | -11 -10 -10 -9 -9 -9 -8 -8 -7 -7 -7 --------- Run | Yrd Mat Min Mat Min Exi Min Mat Fac Gar Fac Machines Accessed 22 | . 1 . 4 . 2 . 4 2 2 7 Terminals 14 | . 1 . 3 . . . 3 1 2 4 Fabricators . | . . . . . . . . . . . Repair Stations 4 | . . . 1 . . . 1 . . 2 Recycling Units 1 | . . . . . . . . . . 1 Scanalyzers . | . . . . . . . . . . . Garrison Access 1 | . . . . . . . . 1 . . Total Hacks 56 | . 5 . 11 . 4 . 10 5 2 19 Successful 32 | . 2 . 6 . 4 . 5 2 2 11 Failed 24 | . 3 . 5 . . . 5 3 . 8 Catastrophic 3 | . 1 . . . . . . . . 2 Database Lockouts . | . . . . . . . . . . . Manual 33 | . 4 . 8 . 1 . 7 4 . 9 Terminals 38 | . 5 . 8 . . . 8 4 2 11 Fabricators . | . . . . . . . . . . . Repair Stations 11 | . . . 3 . . . 2 . . 6 Recycling Units 2 | . . . . . . . . . . 2 Scanalyzers . | . . . . . . . . . . . Garrison Access 1 | . . . . . . . . 1 . . Terminal Hacks 10 | . 2 . . . 4 . 1 . 2 1 Record 3 | . . . . . 3 . . . . . Prototype ID Bank 2 | . 2 . . . . . . . . . Open Door 1 | . . . . . . . . . 1 . Emergency Access Points 1 | . . . . . . . . . 1 . Alert Level 1 | . . . . . . . 1 . . . Unreport Threat 1 | . . . . . . . . . . 1 Derelict Proto ID Bank 1 | . . . . . 1 . . . . . Fabricator Hacks . | . . . . . . . . . . . Repair Station Hacks 9 | . . . 2 . . . 2 . . 5 Scan Component 5 | . . . 1 . . . 1 . . 3 Repair 4 | . . . 1 . . . 1 . . 2 Recycling Unit Hacks 1 | . . . . . . . . . . 1 Retrieve Components 1 | . . . . . . . . . . 1 Scanalyzer . | . . . . . . . . . . . Garrison Access Hacks 1 | . . . . . . . . 1 . . Unlock Access 1 | . . . . . . . . 1 . . Unauthorized Hacks 11 | . . . 4 . . . 2 1 . 4 Terminals 10 | . . . 4 . . . 2 1 . 3 Botnet 8 | . . . 3 . . . 2 1 . 2 Operators 2 | . . . 1 . . . . . . 1 Fabricators . | . . . . . . . . . . . Repair Stations . | . . . . . . . . . . . Recycling Units 1 | . . . . . . . . . . 1 Recyclers 1 | . . . . . . . . . . 1 Scanalyzers . | . . . . . . . . . . . Garrison Access . | . . . . . . . . . . . Data Cores Recovered . | . . . . . . . . . . . Used . | . . . . . . . . . . . Hacking Detections 15 | . 1 . 3 . . . 3 2 . 6 Full Trace Events 3 | . . . . . . . 1 . . 2 Feedback Events . | . . . . . . . . . . . Feedback Blocked . | . . . . . . . . . . . Robot Schematics Acquired . | . . . . . . . . . . . Robots Built . | . . . . . . . . . . . Authchips . | . . . . . . . . . . . Time . | . . . . . . . . . . . Total Robot Build Rating . | . . . . . . . . . . . Part Schematics Acquired . | . . . . . . . . . . . Parts Built . | . . . . . . . . . . . Authchips . | . . . . . . . . . . . Time . | . . . . . . . . . . . Total Part Build Rating . | . . . . . . . . . . . Parts Repaired 4 | . . . 1 . . . 1 . . 2 Time 121 | . . . 26 . . . 26 . . 69 Parts Recycled . | . . . . . . . . . . . Recycled Matter . | . . . . . . . . . . . Retrieved Matter . | . . . . . . . . . . . Retrieved Components 1 | . . . . . . . . . . 1 Parts Scanalyzed . | . . . . . . . . . . . Part Schematics Acquired . | . . . . . . . . . . . Parts Damaged . | . . . . . . . . . . . Bothacking | -11 -10 -10 -9 -9 -9 -8 -8 -7 -7 -7 ------------ Run | Yrd Mat Min Mat Min Exi Min Mat Fac Gar Fac Used RIF Installer . | . . . . . . . . . . . Robots Hacked . | . . . . . . . . . . . Non-combat . | . . . . . . . . . . . Combat . | . . . . . . . . . . . Robot Hacks Applied . | . . . . . . . . . . . Relay Couplers Released 20 | . . . . . . . . . 20 . Machine Destruction 20 | . . . . . . . . . 20 . Fabnet Peak Effective % . | . . . . . . . . . . . Robots Rewired 6 | . . . . . . . . . 6 . Allies Hacked . | . . . . . . . . . . . Hacks Repelled . | . . . . . . . . . . . Allies | -11 -10 -10 -9 -9 -9 -8 -8 -7 -7 -7 -------- Run | Yrd Mat Min Mat Min Exi Min Mat Fac Gar Fac Total Allies 9 | . . . . 1 . . . . 8 . Largest Group 3 | . . . . 1 . . . . 3 2 Highest-Rated Group 190 | . . . . 31 . . . . 190 185 Highest-Rated Ally 95 | . . . . 31 . . . . 95 95 Total Orders 2 | . . . . . . . . . 2 . STAY 1 | . . . . . . . . . 1 . FOLLOW 1 | . . . . . . . . . 1 . Ally Attacks 67 | . . . . 7 . . . . 50 10 Total Damage 1816 | . . . . 60 . . . . 1380 376 Kills 15 | . . . . 2 . . . . 13 . Allies Corrupted . | . . . . . . . . . . . Allies Melted 1 | . . . . . . . . . 1 . Turrets Deployed 3 | . . . . . . . . . 2 1 Intel | -11 -10 -10 -9 -9 -9 -8 -8 -7 -7 -7 ------- Run | Yrd Mat Min Mat Min Exi Min Mat Fac Gar Fac Robot Analysis Total . | . . . . . . . . . . . Derelict Logs Recovered 2 | . . 1 . 1 . . . . . . Drone Launches . | . . . . . . . . . . . Drone Recoveries . | . . . . . . . . . . . Exploration | -11 -10 -10 -9 -9 -9 -8 -8 -7 -7 -7 ------------- Run | Yrd Mat Min Mat Min Exi Min Mat Fac Gar Fac Turns Passed 8312 | 69 242 510 604 809 432 138 1129 366 1848 2165 Spaces Moved 3969 | 38 129 295 257 454 265 87 509 135 836 964 Core 4 | 4 . . . . . . . . . . Treads 3965 | 34 129 295 257 454 265 87 509 135 836 964 Legs . | . . . . . . . . . . . Wheels . | . . . . . . . . . . . Hover . | . . . . . . . . . . . Flight . | . . . . . . . . . . . Fastest Speed 50 | 50 160 160 160 160 160 160 160 160 160 160 Average Speed 163 | 148 160 160 160 160 160 160 161 177 161 170 Slowest Speed 400 | 160 160 160 160 160 160 160 240 240 170 400 Overloaded Moves . | . . . . . . . . . . . Propulsion Burnouts . | . . . . . . . . . . . Robots Hopped 1 | . . . . . . . . . 1 . Cave-ins Triggered 1 | . . . . . . . . . . 1 Exploration Rate (%) 45 | 4 32 77 30 84 68 26 56 3 94 27 Regions Visited 10 Branch Regions 4 Pre-discovered Areas 1 | . . . . . 1 . . . . . Known Exits Taken 1 | . . . . . . . . 1 . . Unknown Exits Taken 8 | 1 1 1 1 1 1 1 1 . . . Scrap Searched 2 | . . 1 . 1 . . . . . . Spaces Dug 26 | . . . . . . . . . 22 4 Terrain Destroyed 550 | . . . 41 77 . . 28 23 169 212 Melee 7 | . . . . . . . . . 3 4 Projectile 7 | . . . . . . . . . . 7 AOE 536 | . . . 41 77 . . 28 23 166 201 Terrain Rammed . | . . . . . . . . . . . Walls Destroyed . | . . . . . . . . . . . Machines Disabled . | . . . . . . . . . . . Actions | -11 -10 -10 -9 -9 -9 -8 -8 -7 -7 -7 --------- Run | Yrd Mat Min Mat Min Exi Min Mat Fac Gar Fac Total 5179 | 48 152 316 375 494 273 86 774 206 1158 1297 Wait 444 | . . 10 57 6 . . 213 19 39 100 Move 3958 | 37 128 294 256 453 264 86 508 135 833 964 Hop 1 | . . . . . . . . . 1 . Pick Up 70 | 3 7 1 2 2 4 . 10 2 23 16 Fast Attach 45 | 7 4 . 3 . . . 7 4 8 12 Attach 25 | . . . 1 3 . . . 2 8 11 Detach 9 | 1 . . . . . . . . 2 6 Swap 45 | . . . 5 1 3 . 3 8 9 16 Drop 84 | . 4 2 5 . 2 . 10 6 26 29 Fire 340 | . 7 9 46 25 . . 23 30 100 100 Melee 65 | . . . . . . . . . 29 36 Ram . | . . . . . . . . . . . Kick . | . . . . . . . . . . . Crush 9 | . 2 . . 4 . . . . . 3 Escape Stasis . | . . . . . . . . . . . Rewire 80 | . . . . . . . . . 80 . Trap 4 | . . . . . . . . . . 4 Miscellaneous . | . . . . . . . . . . . Route ------- -11/Scrapyard -10/Materials -10/Mines -9/Materials -9/Mines (discovered 3 exits: *Mat x2 / *Exi) -9/Exiles -8/Mines -8/Materials -7/Factory (discovered 2 exits: Sto / Gar) -7/Garrison (discovered 4 exits: *Fac x4) -7/Factory (discovered 3 exits: [*Fac] / [*Low x2]) History --------- Turn | Location | Event 31 | -11/Scrapyard | Discovered new exit (range 15) 70 | -11/Scrapyard | Entered Materials 125 | -10/Materials | Discovered new exit (range 14) 312 | -10/Materials | Entered Mines 313 | -10/Mines | Build established: Mutant 583 | -10/Mines | Learned Materials emergency access door positions 776 | -10/Mines | Discovered new exit (range 14) 789 | -10/Mines | YI-UF0 nonchalantly dropped a Grenade Launcher on the ground 822 | -10/Mines | Entered Materials 822 | -9/Materials | Evolved 2 slots: Propulsion x1, Utility x1 879 | -9/Materials | Destroyed 7 combat bots 1284 | -9/Materials | Repaired Lgt. Treads 1400 | -9/Materials | Discovered new exit (range 12) 1426 | -9/Materials | Entered Mines 1607 | -9/Mines | A weapon hastily lodged in a ceiling crevice suddenly fell to the ground 1677 | -9/Mines | Assembled infested the area 1796 | -9/Mines | Discovered new exit (range 9) 1914 | -9/Mines | Lost 3 parts (1u2w) 1958 | -9/Mines | Received a Mining Laser from a helpful Derelict 2058 | -9/Mines | Discovered new exit (range 7) 2227 | -9/Mines | Deemed a non-threat by the Exiles lab entrance 2227 | -9/Mines | Discovered new exit (range 5) 2235 | -9/Mines | Entered Exiles 2275 | -9/Exiles | Met 8R-AWN 2301 | -9/Exiles | Met EX-HEX 2347 | -9/Exiles | Met EX-BIN 2367 | -9/Exiles | Aligned with FarCom system 2368 | -9/Exiles | Given EX-Vault access code 2405 | -9/Exiles | Opened EX-Vault 2419 | -9/Exiles | Found Chronowheel 2422 | -9/Exiles | Found Deploy-a-Sentry 2428 | -9/Exiles | Found Deploy-a-Sentry 2431 | -9/Exiles | Found Deploy-a-Sentry 2465 | -9/Exiles | Warned to stay clear of 0b10 Research branches 2571 | -9/Exiles | Met EX-DEC 2598 | -9/Exiles | Learned location of Zion (-7) 2652 | -9/Exiles | Discovered new exit (range 10) 2667 | -9/Exiles | Stole two prototypes: Chronowheel, Deploy-a-Sentry 2667 | -9/Exiles | Entered Mines 2783 | -8/Mines | Discovered new exit (range 15) 2805 | -8/Mines | Entered Materials 2805 | -8/Materials | Evolved 2 slots: Propulsion x1, Utility x1 3097 | -8/Materials | Repaired Lgt. Treads 3917 | -8/Materials | Discovered new exit (range 8) 3934 | -8/Materials | Entered Factory 3934 | -7/Factory | Evolved 2 slots: Utility x2 3935 | -7/Factory | Identified exit to Storage 3936 | -7/Factory | FarCom data flow suspended 4052 | -7/Factory | Garrison activated, responded to threat 4300 | -7/Factory | Identified exit to Garrison 4300 | -7/Factory | Entered Garrison 4330 | -7/Garrison | Triggered checkpoint 4344 | -7/Garrison | Discovered new exit (range 5) 4664 | -7/Garrison | Triggered checkpoint 4666 | -7/Garrison | DAS Turret deployed 4767 | -7/Garrison | Garrison Relay disabled 4819 | -7/Garrison | Build established: Scavenger-Mutant 5020 | -7/Garrison | Triggered checkpoint 5022 | -7/Garrison | Triggered checkpoint 5023 | -7/Garrison | DAS Turret deployed 5038 | -7/Garrison | Triggered checkpoint 5075 | -7/Garrison | Destroyed 9 combat bots 5168 | -7/Garrison | Discovered new exit (range 10) 5246 | -7/Garrison | Triggered checkpoint 5272 | -7/Garrison | Triggered checkpoint 5272 | -7/Garrison | Garrison Relay disabled 5490 | -7/Garrison | Phase Generator disabled 5514 | -7/Garrison | Garrison Relay disabled 5534 | -7/Garrison | Triggered checkpoint 5577 | -7/Garrison | Lost 3 allies 5600 | -7/Garrison | Discovered new exit (range 9) 5713 | -7/Garrison | Triggered checkpoint 5818 | -7/Garrison | Found embedded Infiltrators 6008 | -7/Garrison | Triggered checkpoint 6052 | -7/Garrison | Triggered checkpoint 6066 | -7/Garrison | Garrison Relay disabled 6132 | -7/Garrison | Discovered new exit (range 10) 6148 | -7/Garrison | Entered Factory 6148 | -7/Factory | Accompanied by 2 allies 6242 | -7/Factory | Repaired Imp. Light Armor Plating 6712 | -7/Factory | Discovered new exit (range 16) 7205 | -7/Factory | Repaired Hyb. Antimatter Reactor 7234 | -7/Factory | Discovered new exit (range 13) 7311 | -7/Factory | Core integrity fell below 50% 7440 | -7/Factory | Discovered new exit (range 15) 7653 | -7/Factory | Build established: Mutant 7748 | -7/Factory | First assault squad dispatched 8228 | -7/Factory | DAS Turret deployed 8251 | -7/Factory | Garrison activated, responded to threat 8271 | -7/Factory | System corruption reached 10% 8281 | -7/Factory | Destroyed 14 combat bots 8298 | -7/Factory | Crushed by falling debris 8298 | -7/Factory | Core integrity fell below 20% 8313 | -7/Factory | Destroyed by G-50 Soldier with Heavy Laser Last Messages --------------- 08307_ Dropped Matter Compressor. 08308_ Acquired 5 matter. 08308_ Imp. Deuterium Engine destroyed. 08308_ Dropped Matter Compressor. 08308_ Lyr. Light Armor Plating destroyed. 08308_ Dropped Prc. Shock Rifle. 08308_ Lrn. Tractor Beam destroyed. 08309_ K-01 Serf collects debris. 08309_ Dropped Beamcaster. 08309_ Dropped Missile Launcher. 08310_ Dropped Power Maul. 08310_ M-28 Smith repairs G-47 Trooper. 08310_ Dropped Gamma Bomb Trap. 08311_ K-01 Serf collects debris. 08311_ Dropped Imp. Light Armor Plating. 08312_ M-28 Smith repairs Lgt. Nuclear Core. 08312_ U-05 Engineer builds a Wall. 08313_ K-01 Serf collects debris. 08313_ Dropped Hcp. Storage Unit. 08313_ K-01 Serf collects debris. Map ----- +----------------------------------------------------+ | ?# ?????????# #???# """ | | ?# ###+### ?????????# #???# """ | | ?# ??????? ????????# # #???# """ | | ?# ??????????????????????# [=r #????# [ | | ?# ??????????????????????# %/ #????# * / | | ?? ??????????????????????##### #+################# | | ??????????????????? ########## = # | | ?????????????????# %/ # | | ?????????????????# r | | ?????????????????# # | | ?????????????????+ """ # | | ?????????????????# r % """ ## # # | | ?????????????????? # # " """ ## = # # | | ?????????????????? # # # | | ?????????????????? # # | | ????????????????? % # | | ??????????????# " " ! = ! *# | | ??????????????# ""G""gg # # | | ??????????????? m g ## # # | | ???????????????## * ####+### # | | ???????????????# *[ # | | ???????????????# g # | | ???????????????# k k """ """ # | | ???????????????# k """ """ # | | ???????????????? /[& """ """ # | | ?????????????????????###[@!# #%% # | | ?????????????????????# !!] """ """ # | | ?????????????????????# ! """ """ # | | ?????????????????????# " ""% """ """ # | | ?????????????????????# " """" # | | ?????????????????????# g """"" # """ """ # | | ?????????????????????#= u # """ """ # | | ?????????????????????## #/### ## #### """ """ # | | ??????????????????????###g# ######### # | | ??????????????????????? """ """ # | | ?????????????????????? """ """ # | | ?????????????????????? """ """ # | | ????????????????????? ! # | | ???????????????????? = # | | ???????????????????#### ######### # | | ???????????????????????? ????????# # | | ????????????????????????? ????????# | | ????????????????????????? ?????????# | | ????????????????????????? ?????????# | | ?????????????????????????? ??????????# | | ?????????????????????????? ???????????# | | ???????????????????????????###?????????????####### | | ???????????????????????????????????????????????# | | ???????????????????????????????????????????????# | | ???????????????????????????????????????????????# | +----------------------------------------------------+ Best States ------------- Heat Dissipation 78 Energy Generation 21 Energy Capacity 1100 Matter Stores 300 Matter Capacity 300 Sight Range 20 Robot Scan Range 15 Terrain Scan Density 10 Armor Coverage 750 Evasion (%) 40 Recoil Reduction 4 Kinecelleration 30 Item Schematics ----------------- None Robot Schematics ------------------ None Fabricated ------------ Nothing Alien Tech Used ----------------- None Achievements -------------- None Challenges ------------ None Game ------ Seed BehemothSeismicModule Manual? 0 Play Time 00:56:21 Cumulative 177.2 hours Start 2024.05.14 @ 14:28:12 End 2024.05.14 @ 15:27:48 Sessions 1 Manual Loads 0 Difficulty Rogue Special Mode None Game No. 173 Rogue 168 Adventurer 5 Explorer 0 Win Type - Total 3 Types 2/0/0/1/0/0/0/0/0 Lore% 54 Gallery% 74 Achievement% 55 Wizard Run 0 Options --------- Layout 2 ASCII 0 Keyboard 0 Movement Mouse Keybinds 0 Fullscreen 1 Font 24/Terminus Map View 50x44 Zoom Use 0% Tactical HUD 1 Map Filters NONE Filters NONE Steam 1 RUN: 6d0bb4f0-57c0-450c-8f68-a897664a9212